Cogmind - Beta 16.1 @@@ ROGUE MODE // 2026.02.17 @ 19:03:23 Player: Kosys Result: Destroyed by RC-C7B(R) with Subdweller Laser Performance ------------- Evolutions (0) 0 Regions Visited (2) 400 Robots Destroyed (22) 110 Value Destroyed (395) 395 Prototype IDs (0) 0 Alien Tech Used (0) 0 Bonus (0) 0 TOTAL SCORE: 905 Bonus ------- None Cogmind --------- Core Integrity 0/250 Matter 488/500 Energy 124/125 System Corruption 0% Temperature Cool (6) Movement Walking (120) Location -10/Subcaves Parts ------- > --- POWER (1) -------- Light Ion Engine > --- PROPULSION (2) --- Aluminum Leg Aluminum Leg > --- UTILITY (2) ------ High-capacity Matter Pod Subdweller Optics > --- WEAPON (2) ------- Small Laser Assault Rifle > --- INVENTORY (5) ---- Light Ion Engine Aluminum Leg Light Assault Rifle Light Assault Rifle Peak State ------------ > --- POWER ------------ Light Ion Engine > --- PROPULSION ------- Aluminum Leg Aluminum Leg > --- UTILITY ---------- Large Storage Unit High-capacity Matter Pod > --- WEAPON ----------- Assault Rifle Grenade Launcher > --- INVENTORY -------- Ion Engine Light Ion Engine Aluminum Leg Wheel Compact Wheel Compact Wheel Flight Unit Medium Matter Pod EM Pulse Gun Light Assault Rifle [Rating: 8] Favorites ----------- Power Light Ion Engine Engine Light Ion Engine Propulsion Aluminum Leg Leg Aluminum Leg Utility Medium Matter Pod Device Subdweller Optics Storage Medium Matter Pod Weapon Assault Rifle Energy Gun EM Pulse Gun Ballistic Gun Assault Rifle Launcher Grenade Launcher Build | -11 -10 -10 ------- Run | Yrd Mat Sub Slots Evolved . | . . . Power . | . . . Propulsion . | . . . Utility . | . . . Weapon . | . . . Parts Attached 16 | 6 6 4 Power 3 | 1 1 1 Engine 3 | 1 1 1 Core . | . . . Reactor . | . . . Propulsion 4 | 2 1 1 Treads . | . . . Leg 4 | 2 1 1 Wheel . | . . . Hover . | . . . Flight . | . . . Utility 4 | 1 2 1 Device 1 | . . 1 Storage 3 | 1 2 . Processor . | . . . Hackware . | . . . Protection . | . . . Artifact . | . . . Weapon 5 | 2 2 1 Energy Gun 2 | 1 . 1 Energy Cannon . | . . . Ballistic Gun 2 | 1 1 . Ballistic Cannon . | . . . Launcher 1 | . 1 . Special Weapon . | . . . Impact Weapon . | . . . Slashing Weapon . | . . . Piercing Weapon . | . . . Special Melee Weapon . | . . . Unidentified Prototypes . | . . . Parts Lost 5 | . 4 1 Power 2 | . 1 1 Propulsion 1 | . 1 . Utility . | . . . Weapon 2 | . 2 . Highest Loss Streak 3 | . 3 1 To Critical Strikes . | . . . Average Backups 6 | 4 9 7 Power . | . 1 1 Propulsion 4 | 3 5 2 Utility . | . 1 1 Weapon 1 | . 1 1 Tool/Special . | . . . Unused Backups 16 | 1 2 13 Power 1 | . . 1 Propulsion 9 | 1 2 6 Utility 4 | . . 4 Weapon 2 | . . 2 Tool/Special . | . . . Average Slot Usage (%) 92 | . 91 96 Engine 12 | . 12 11 Leg 26 | . 26 28 Device 1 | . . 8 Storage 23 | . 24 19 Energy Gun 7 | . 7 7 Ballistic Gun 16 | . 15 20 Launcher 3 | . 5 . Peak Build Rating 8 | 6 8 8 Average Rating 6 | 5 6 7 On Entrance 4 | . 6 8 Avg Prop Armor Cover (%) . | . . . Naked Turns . | . . . Heaviest Build 32 | 9 32 32 Greatest Support 20 | 20 20 20 Greatest Overweight (x) 2 | . 2 1 Average Overweight (x) . | . . . Largest Inventory Capacity 15 | 5 15 15 Average Capacity 6 | 5 12 8 Most Carried 15 | 5 15 15 Average Carried 6 | 4 9 7 Final Capacity 15 | 5 15 5 Final Carried 15 | 5 15 4 Class Distribution -------------------- 96% | Mutant 3% | Scavenger-Mutant Dominant Class ---------------- Mutant | -10/Materials Scavenger-Mutant | -10/Subcaves Resources | -11 -10 -10 ----------- Run | Yrd Mat Sub Matter Collected 958 | 342 572 44 Remotely . | . . . Salvage Created 657 | 71 586 . Parts 39 | 4 35 . Haulers Intercepted 1 | . 1 . Recyclers Shooed 2 | . 2 . Parts Field Recycled . | . . . Retrieved Matter . | . . . Parts Self-Destructed . | . . . Prevented . | . . . Parts Restored . | . . . Kills | -11 -10 -10 ------- Run | Yrd Mat Sub Combat Hostiles Destroyed 11 | 1 10 . Guns 7 | 1 6 . AOE 4 | . 4 . Classes Destroyed 7 | 2 5 . Worker 2 | 1 1 . Hauler 1 | . 1 . Recycler 5 | . 5 . Operator 1 | . 1 . Watcher 2 | . 2 . Swarmer 6 | . 6 . Grunt 5 | 1 4 . Best Kill Streak 8 | 1 8 . Combat Bots Only 3 | 1 3 . Max Kills in Single Turn 2 | 1 2 . Gunslinging . | . . . Exploded 2 | . 2 . Melee . | . . . Uniques/NPCs Destroyed . | . . . Combat | -11 -10 -10 -------- Run | Yrd Mat Sub Hostile Shots Fired 81 | 3 72 6 Missed 28 | 1 24 3 Hits 53 | 2 48 3 Projectile 53 | 2 48 3 AOE 1 | . . 1 Damage Taken 811 | 21 656 134 Core 250 | . 202 48 Absorbed by Shields . | . . . Core Remaining (%) 100 | 100 . . Volleys Fired 70 | 14 49 7 Largest 2 | 2 2 2 Hottest 60 | 60 60 60 Shots Fired 120 | 16 92 12 Gun 103 | 16 75 12 Cannon . | . . . Launcher 17 | . 17 . Special . | . . . Kinetic 68 | 2 60 6 Thermal 6 | . . 6 Explosive 17 | . 17 . Electromagnetic 29 | 14 15 . Robot Hit Streak 9 | 2 5 9 Robot Miss Streak 5 | 5 5 1 Penetration Max . | . . . Secondary Targets . | . . . Shots Hit Robots 54 | 4 41 9 Core Hits 37 | 2 34 1 Critical Kills . | . . . Critical Parts Destroyed . | . . . Critical Strikes . | . . . Melee Attacks . | . . . Impact . | . . . Slashing . | . . . Piercing . | . . . Sneak Attacks . | . . . Combat Hostiles . | . . . Follow-up Attacks . | . . . Damage Inflicted 1298 | 55 1133 110 Guns 644 | 55 479 110 Cannons . | . . . Explosions 654 | . 654 . Melee . | . . . Ramming . | . . . Kinetic 464 | . 388 76 Thermal 80 | . 46 34 Explosive 608 | . 608 . Electromagnetic 146 | 55 91 . Impact . | . . . Slashing . | . . . Piercing . | . . . Highest Corruption . | . . . Average Corruption . | . . . Corruption Purged . | . . . Corruption Blocked . | . . . Overload Shots . | . . . Overflow Damage 59 | . 59 . Projectiles . | . . . Explosions 59 | . 59 . Melee . | . . . Knockbacks . | . . . Impact . | . . . Kinetic . | . . . Secondary . | . . . Self-Inflicted Damage 247 | . 247 . Shots 5 | . 5 . Rammed . | . . . Targets Rammed . | . . . Kicked . | . . . Crushed . | . . . Highest Temperature 20 | 6 20 . Average Temperature 10 | 6 10 . Received Heat Transfer 75 | 12 51 12 Siege Activations . | . . . Martial Activations . | . . . Shielding Activations . | . . . Robots Disrupted . | . . . Combat Hostiles . | . . . Robots Corrupted . | . . . Combat Hostiles . | . . . Parts Fried . | . . . Impact Corruptions . | . . . Robots Melted . | . . . Combat Hostiles . | . . . Parts Melted . | . . . Heat Transferred 125 | . 50 75 Parts Sabotaged . | . . . Parts Stolen . | . . . Parts Stripped . | . . . Power Chain Reactions 1 | . 1 . Alert | -11 -10 -10 ------- Run | Yrd Mat Sub Maximum Alert Level 1 | . 1 . Low Security (%) 96 | 100 81 . Level 1 3 | . 18 . Level 2 . | . . . Level 3 . | . . . Level 4 . | . . . Level 5 . | . . . High Security . | . . . Max Security . | . . . Peak Influence 215 | 20 215 . Initial . | . . . Average 31 | . 152 . Influence Increases 560 | 25 535 . Destroy 0b10 Robot/C 220 | 20 200 . Destroy 0b10 Robot/NC 55 | 5 50 . Destroy Leader 46 | . 46 . Successful Hack 4 | . 4 . Disable Machine 105 | . 105 . Destroy Structure 100 | . 100 . Lose Combat Pursuer 30 | . 30 . Influence Decreases 560 | 25 336 199 Entered New Map 96 | . . 96 Time Decay 414 | 25 296 93 Lost Part 50 | . 40 10 Squads Dispatched 1 | . 1 . Investigation . | . . . Extermination . | . . . Reinforcement 1 | . 1 . Assault . | . . . Garrison . | . . . Intercept . | . . . Searches Triggered . | . . . Construction Impeded . | . . . Haulers Reinforced . | . . . Active Scanning Responses . | . . . Cargo Convoy Interrupts . | . . . Stealth | -11 -10 -10 --------- Run | Yrd Mat Sub Distress Signals . | . . . Communications Jammed . | . . . Distress Signals . | . . . Times Spotted 19 | 1 14 4 Peak Tracking Total 4 | 1 4 2 Tactical Retreats 1 | . 1 . Traps | -11 -10 -10 ------- Run | Yrd Mat Sub Traps Triggered 1 | . . 1 Indirectly . | . . . Trap Hack Attempts . | . . . Triggered . | . . . Disarmed . | . . . Reprogrammed . | . . . Reused . | . . . Traps Extracted . | . . . Installed . | . . . Triggered . | . . . Machines | -11 -10 -10 ---------- Run | Yrd Mat Sub Machines Disabled 7 | . 7 . Max in Single Turn 4 | . 4 . Machines Repaired . | . . . Machines Dismantled . | . . . Machines Sabotaged . | . . . Overloaded Fab Kills . | . . . Hacking | -11 -10 -10 --------- Run | Yrd Mat Sub Machines Accessed 2 | . 2 . Terminals 1 | . 1 . Fabricators . | . . . Repair Stations . | . . . Recycling Units 1 | . 1 . Scanalyzers . | . . . Garrison Access . | . . . Total Hacks 7 | . 7 . Successful 6 | . 6 . Failed 1 | . 1 . Catastrophic . | . . . Database Lockouts . | . . . Manual . | . . . Terminals 4 | . 4 . Fabricators . | . . . Repair Stations . | . . . Recycling Units 3 | . 3 . Scanalyzers . | . . . Garrison Access . | . . . Terminal Hacks 3 | . 3 . Record 3 | . 3 . Fabricator Hacks . | . . . Repair Station Hacks . | . . . Recycling Unit Hacks 3 | . 3 . Recycle Component 1 | . 1 . Process 1 | . 1 . Report Inventory 1 | . 1 . Scanalyzer . | . . . Garrison Access Hacks . | . . . Unauthorized Hacks . | . . . Terminals . | . . . Fabricators . | . . . Repair Stations . | . . . Recycling Units . | . . . Scanalyzers . | . . . Garrison Access . | . . . Data Cores Recovered . | . . . Used . | . . . Hacking Detections 1 | . 1 . Full Trace Events 1 | . 1 . Feedback Events . | . . . Feedback Blocked . | . . . Robot Schematics Acquired . | . . . Robots Built . | . . . Authchips . | . . . Time . | . . . Total Robot Build Rating . | . . . Part Schematics Acquired . | . . . Parts Built . | . . . Authchips . | . . . Time . | . . . Total Part Build Rating . | . . . Part Studies Acquired . | . . . Parts Repaired . | . . . Time . | . . . Parts Recycled 1 | . 1 . Recycled Matter 20 | . 20 . Retrieved Matter . | . . . Retrieved Components . | . . . Parts Scanalyzed . | . . . Part Schematics Acquired . | . . . Parts Damaged . | . . . Bothacking | -11 -10 -10 ------------ Run | Yrd Mat Sub Used RIF Installer . | . . . Robots Hacked . | . . . Non-combat . | . . . Combat . | . . . Robot Hacks Applied . | . . . Relay Couplers Released . | . . . Fabnet Peak Effective % . | . . . Robots Rewired . | . . . Allies Hacked . | . . . Hacks Repelled . | . . . Allies | -11 -10 -10 -------- Run | Yrd Mat Sub Total Allies . | . . . Largest Group . | . . . Highest-Rated Group . | . . . Highest-Rated Ally . | . . . Total Orders . | . . . Ally Attacks . | . . . Total Damage . | . . . Kills . | . . . Allies Corrupted . | . . . Allies Melted . | . . . Intel | -11 -10 -10 ------- Run | Yrd Mat Sub Active Infowar (turns) 136 | . . 136 Optics 136 | . . 136 Robot Analysis Total . | . . . Derelict Logs Recovered . | . . . Drone Launches . | . . . Drone Recoveries . | . . . Exploration | -11 -10 -10 ------------- Run | Yrd Mat Sub Turns Passed 4017 | 3030 771 216 Spaces Moved 1119 | 651 335 133 Core 35 | 35 . . Treads . | . . . Legs 1084 | 616 335 133 Wheels . | . . . Hover . | . . . Flight . | . . . Fastest Speed 50 | 50 120 120 Average Speed 136 | 116 176 137 Slowest Speed 260 | 120 260 190 Overloaded Moves . | . . . Propulsion Burnouts . | . . . Robots Hopped . | . . . Potential Cave-ins . | . . . Cave-ins Triggered . | . . . Exploration Rate (%) 27 | 32 42 9 Regions Visited 2 Branch Regions 1 Pre-discovered Areas . | . . . Known Exits Taken . | . . . Unknown Exits Taken 2 | 1 1 . Scrap Searched . | . . . Spaces Dug . | . . . Terrain Destroyed 103 | . 103 . Melee . | . . . Projectile . | . . . AOE 103 | . 103 . Terrain Rammed . | . . . Walls Destroyed . | . . . Machines Disabled . | . . . Actions | -11 -10 -10 --------- Run | Yrd Mat Sub Total 3492 | 2909 426 157 Wait 2241 | 2224 17 . Move 1117 | 650 334 133 Hop . | . . . Pick Up 36 | 13 17 6 Fast Attach . | . . . Attach 13 | 6 5 2 Detach . | . . . Swap 5 | . 3 2 Drop 10 | 2 1 7 Fire 70 | 14 49 7 Melee . | . . . Ram . | . . . Kick . | . . . Crush . | . . . Escape Stasis . | . . . Rewire . | . . . Trap . | . . . Miscellaneous . | . . . Route ------- -11/Scrapyard -10/Materials (discovered 2 exits: [*Mat] / [*Sub]) -10/Subcaves History --------- Turn | Location | Event 2 | -11/Scrapyard | Met Revision 17 81 | -11/Scrapyard | Discovered new exit (range 8) 3031 | -11/Scrapyard | Entered Materials 3032 | -10/Materials | Build established: Mutant 3438 | -10/Materials | Discovered new exit (range 14) 3442 | -10/Materials | Core integrity fell below 50% 3472 | -10/Materials | Lost 3 parts (1p1n1w) 3674 | -10/Materials | Discovered new exit (range 10) 3756 | -10/Materials | Core integrity fell below 20% 3802 | -10/Materials | Entered Subcaves 4005 | -10/Subcaves | Ambushed by Subdwellers from Twisted Machinery 4018 | -10/Subcaves | Destroyed by RC-C7B(R) with Subdweller Laser Last Messages --------------- Dropped Lrg. Storage Unit. Dropped Sml. Storage Unit. Dropped Flight Unit. Dropped Scrap Shield. Acquired Sub. Optics. [Achievement: Spot Them First] Acquired 25 matter. Acquired Lgt. Assault Rifle. XT-8Q7(O) collects matter. Acquired Sml. Laser. Extracted 15 matter. Acquired Lgt. Ion Engine. Subatomizers dissect the Flight Unit. Subatomizers dissect the Flight Unit, destroying it. RC-C7B(R) emerges from the Twisted Machinery. HV Slug penetrates Twisted Machinery. HV Slug penetrates XA-1RS(R). XA-1RS(R) suffers critical hit (Destroy). XA-1RS(R) destroyed. Map ----- +----------------------------------------------------+ | | | | | | | | | ?????????????????????????????????????????????????? | | ?????????????????????????????????????????????????? | | ?????????????????????????????????????????????????? | | ?????????????????????????????????????????????????? | | ?????????????????????????????????????????????????? | | ?????????????????????????????????????????????????? | | ?????????????????????????????????????????????????? | | ?????????????????????????????????????????????????? | | ?????????????????????????????????????????????????? | | ?????????????????????????????????????????????????? | | ?????????????????????????????????????????????????? | | ?????????????????????????????????????????????????? | | ?????????????????????????????????????????????????? | | ?????????????????????????????????????????????????? | | ?????????????????????????????????????????????????? | | ????????????????????????###??????????????????????? | | ???#######?????????????## ##?????????????????????? | | ???# ####??????????# #?????????????????????? | | ???# % ###?####???# ###???????????????????? | | ???# ### #####% ##????? "#??????????? | | ???#%% =## ## % ""###" " ????????? | | ???## % ## % @ R"" " ???????? | | ????# = ### % !*%&%" "" #?????????? | | ###?# #?# %% %h %%% """ "#?????????? | | %### #### ## ## #### " ""??????????? | | ^ #### %### % ## #?????""##?????????? | | #??# ##?## "" ?????????????????? | | ##### #???# %" ???????????????? | | % % #### #???# % % ??????????????? | | !! #% #?# #???### #?????????????? | | =""## ##?####?????## #### ##?????????????? | | & # # #????????????###???######??????????????? | | *& # ## #??????????????????????????????????????? | | % ## #?##??????????????????????????????????????? | | # # #?????????????????????????????????????????? | | #?????????????????????????????????????????? | | # ##?????????????????????????????????????????? | | ######??????????????????????????????????????????? | | #???????????????????????????????????????????????? | | #???????????????????????????????????????????????? | | #???????????????????????????????????????????????? | | #???????????????????????????????????????????????? | | "#???????????????????????????????????????????????? | | ##???????????????????????????????????????????????? | | #????????????????????????????????????????????????? | | ?????????????????????????????????????????????????? | +----------------------------------------------------+ Best States ------------- Heat Dissipation 25 Energy Generation 10 Energy Capacity 250 Matter Stores 500 Matter Capacity 500 Sight Range 21 Terrain Scan Density 10 Evasion (%) 55 Item Schematics ----------------- None Robot Schematics ------------------ None Fabricated ------------ Nothing Repaired ---------- Nothing Studied --------- None Alien Tech Used ----------------- None Achievements -------------- DATA ERROR: Steam Global Achievement% Loot Pinata Spot Them First Challenges ------------ None Game ------ Seed BraceOvertunedSheargun Manual? 0 Play Time 00:26:47 Cumulative 0.9 hours Start 2026.02.17 @ 18:17:46 End 2026.02.17 @ 19:03:23 Sessions 1 Manual Loads 0 Difficulty Rogue Special Mode None Game No. 2 Rogue 2 Adventurer 0 Explorer 0 Win Type - Total 0 Types 0/0/0/0/0/0/0/0/0/0 Lore% 0 Gallery% 1 Achievement% 2 Wizard Run 0 Options --------- Layout 1 ASCII 0 Keyboard 0 Movement Mouse Keybinds 0 Fullscreen 1 Font 48/Smallcaps Map View 50x35 Zoom Use 0% Tactical HUD 0 Map Filters NONE Filters NONE Steam 1 RUN: a5d378a4-8a7a-4c97-a3f3-c74c42c7f995